Cogmind - Beta 9.6 @@@ ROGUE MODE // 2020.05.24 @ 18:02:58 Player: SHADOWELITE7 Result: Destroyed by Y-45 Defender with Beam Rifle Performance ------------- Evolutions (1) 500 Regions Visited (4) 800 Robots Destroyed (22) 110 Value Destroyed (514) 514 Prototype IDs (0) 0 Alien Tech Used (0) 0 Bonus (-324) -324 TOTAL SCORE: 1600 Bonus ------- Friendly Fire -324 Cogmind --------- Core Integrity 0/400 Matter 246/300 Energy 100/100 System Corruption 0% Temperature Cool (18) Movement Core (350) Ox6 Location -9/Mines Parts ------- > --- POWER (2) -------- (None) > --- PROPULSION (2) --- (None) > --- UTILITY (2) ------ Small Storage Unit Large Storage Unit > --- WEAPON (3) ------- (None) > --- INVENTORY (12) --- Ion Engine Visual Processing Unit Targeting Computer EM Shotgun EM Shotgun EM Shotgun Light Assault Rifle Shotgun Mining Claw Peak State ------------ > --- POWER ------------ Ion Engine Ion Engine > --- PROPULSION ------- Light Treads Light Treads > --- UTILITY ---------- Small Storage Unit Large Storage Unit > --- WEAPON ----------- Assault Rifle Assault Rifle Mini Grenade Launcher > --- INVENTORY -------- Ion Engine EM Shotgun EM Shotgun EM Shotgun Spread Laser Spread Laser Light Assault Rifle Shotgun Mining Claw [Rating: 11] Favorites ----------- Power Ion Engine Engine Ion Engine Propulsion Light Treads Treads Light Treads Utility Small Storage Unit Storage Small Storage Unit Weapon Assault Rifle Energy Gun Spread Laser Ballistic Gun Assault Rifle Launcher Mini Grenade Launcher Build | -11 -10 -10 -9 -9 ------- Run | Scr Mat Min Mat Min Slots Evolved 2 | . . . 2 . Power 1 | . . . 1 . Propulsion . | . . . . . Utility . | . . . . . Weapon 1 | . . . 1 . Parts Attached 14 | 7 1 . 2 4 Power 3 | 1 . . 1 1 Engine 3 | 1 . . 1 1 Core . | . . . . . Reactor . | . . . . . Propulsion 2 | 2 . . . . Treads 2 | 2 . . . . Leg . | . . . . . Wheel . | . . . . . Hover . | . . . . . Flight . | . . . . . Utility 2 | 1 1 . . . Device . | . . . . . Storage 2 | 1 1 . . . Processor . | . . . . . Hackware . | . . . . . Protection . | . . . . . Artifact . | . . . . . Weapon 7 | 3 . . 1 3 Energy Gun 2 | . . . . 2 Energy Cannon . | . . . . . Ballistic Gun 4 | 3 . . 1 . Ballistic Cannon . | . . . . . Launcher 1 | . . . . 1 Special Weapon . | . . . . . Impact Weapon . | . . . . . Slashing Weapon . | . . . . . Piercing Weapon . | . . . . . Special Melee Weapon . | . . . . . Unidentified Prototypes . | . . . . . Parts Lost 7 | . . . . 7 Power 2 | . . . . 2 Propulsion 2 | . . . . 2 Utility . | . . . . . Weapon 3 | . . . . 3 Highest Loss Streak 4 | . . . . 4 Average Slot Usage (%) 96 | . 98 100 100 95 Engine 19 | . 14 14 22 20 Treads 22 | . 28 28 22 20 Storage 22 | . 26 28 22 22 Ballistic Gun 24 | . 28 28 33 22 Launcher 6 | . . . . 9 Naked Turns . | . . . . . Heaviest Build 35 | 11 27 27 33 35 Greatest Support 40 | 40 40 40 40 40 Greatest Overweight (x) 7 | . . . . 7 Average Overweight (x) . | . . . . . Largest Inventory Capacity 12 | 6 12 12 12 12 Average Capacity 11 | 5 11 12 12 12 Most Carried 11 | 3 5 5 5 11 Average Carried 8 | 1 3 5 4 10 Final Capacity 12 | 6 12 12 12 12 Final Carried 9 | 2 5 5 5 9 Class Distribution -------------------- 61% | Gunner 38% | Mutant Dominant Class ---------------- Mutant | -10/Materials Mutant | -10/Mines Gunner | -9/Materials Gunner | -9/Mines Resources | -11 -10 -10 -9 -9 ----------- Run | Scr Mat Min Mat Min Matter Collected 514 | 259 30 27 40 158 Remotely . | . . . . . Salvage Created 524 | . 30 46 40 408 Parts 38 | . 2 5 2 29 Haulers Intercepted . | . . . . . Recyclers Shooed . | . . . . . Parts Field Recycled . | . . . . . Retrieved Matter . | . . . . . Parts Self-Destructed . | . . . . . Prevented . | . . . . . Kills | -11 -10 -10 -9 -9 ------- Run | Scr Mat Min Mat Min Combat Hostiles Destroyed 18 | . 1 3 1 13 Guns 11 | . 1 3 1 6 AOE 7 | . . . . 7 Classes Destroyed 5 | . 1 1 . 3 Builder 1 | . . . . 1 Tunneler 1 | . . . . 1 Swarmer 7 | . . 3 . 4 Grunt 12 | . 1 . 1 10 Demolisher 1 | . . . . 1 Best Kill Streak 5 | . 1 3 1 5 Combat Bots Only 4 | . 1 3 1 4 Max Kills in Single Turn 4 | . 1 1 1 4 Gunslinging . | . . . . . Exploded 2 | . . . . 2 Melee . | . . . . . Uniques/NPCs Destroyed . | . . . . . Combat | -11 -10 -10 -9 -9 -------- Run | Scr Mat Min Mat Min Damage Taken 1358 | . 30 72 46 1210 Core 427 | . . 20 . 407 Absorbed by Shields . | . . . . . Core Remaining (%) 96 | 100 . 92 . . Volleys Fired 28 | . 2 4 3 19 Largest 3 | . 2 2 3 3 Hottest 160 | . 40 40 60 160 Shots Fired 69 | . 4 8 9 48 Gun 56 | . 4 8 9 35 Cannon . | . . . . . Launcher 13 | . . . . 13 Special . | . . . . . Kinetic 52 | . 4 8 9 31 Thermal 4 | . . . . 4 Explosive 13 | . . . . 13 Electromagnetic . | . . . . . Robot Hit Streak 7 | . 1 2 2 7 Robot Miss Streak 5 | . 1 1 4 5 Penetration Max . | . . . . . Secondary Targets 1 | . . . . 1 Max Gunslinging Chain 1 | . . . . 1 Shots Hit Robots 42 | . 2 4 2 34 Core Hits 38 | . 1 3 2 32 Critical Hits . | . . . . . Critical Kills . | . . . . . Critical Parts Destroyed . | . . . . . Melee Attacks . | . . . . . Impact . | . . . . . Slashing . | . . . . . Piercing . | . . . . . Sneak Attacks . | . . . . . Combat Hostiles . | . . . . . Follow-up Attacks . | . . . . . Damage Inflicted 1152 | . 15 44 42 1051 Guns 402 | . 15 44 42 301 Cannons . | . . . . . Explosions 748 | . . . . 748 Melee . | . . . . . Ramming 2 | . . . . 2 Kinetic 365 | . 15 44 42 264 Thermal 37 | . . . . 37 Explosive 748 | . . . . 748 Electromagnetic . | . . . . . Impact . | . . . . . Slashing . | . . . . . Piercing . | . . . . . Highest Corruption . | . . . . . Average Corruption . | . . . . . Corruption Purged . | . . . . . Overload Shots . | . . . . . Overflow Damage 20 | . . . . 20 Projectiles . | . . . . . Explosions 20 | . . . . 20 Melee . | . . . . . Knockbacks . | . . . . . Impact . | . . . . . Kinetic . | . . . . . Secondary . | . . . . . Self-Inflicted Damage 241 | . . . . 241 Shots 7 | . . . . 7 Rammed 2 | . . . . 2 Targets Rammed 2 | . . . . 2 Kicked . | . . . . . Crushed . | . . . . . Highest Temperature 75 | . . . 42 75 Average Temperature 30 | . . . 24 32 Received Heat Transfer 321 | . 18 . 24 279 Siege Activations . | . . . . . Robots Corrupted . | . . . . . Combat Hostiles . | . . . . . Parts Fried . | . . . . . Impact Corruptions . | . . . . . Robots Melted . | . . . . . Combat Hostiles . | . . . . . Parts Melted . | . . . . . Heat Transferred 50 | . . . . 50 Parts Sabotaged . | . . . . . Parts Stolen . | . . . . . Parts Stripped . | . . . . . Power Chain Reactions . | . . . . . Missiles Intercepted . | . . . . . Alert | -11 -10 -10 -9 -9 ------- Run | Scr Mat Min Mat Min Peak Influence 167 | . 30 81 58 167 Average Influence 62 | . 5 59 43 78 Maximum Alert Level . | . . . . . Low Security (%) 100 | 100 100 100 100 100 Level 1 . | . . . . . Level 2 . | . . . . . Level 3 . | . . . . . Level 4 . | . . . . . Level 5 . | . . . . . High Security . | . . . . . Max Security . | . . . . . Squads Dispatched 1 | . 1 . . . Investigation 1 | . 1 . . . Extermination . | . . . . . Reinforcement . | . . . . . Assault . | . . . . . Garrison . | . . . . . Intercept . | . . . . . Construction Impeded . | . . . . . Haulers Reinforced . | . . . . . Stealth | -11 -10 -10 -9 -9 --------- Run | Scr Mat Min Mat Min Distress Signals . | . . . . . Communications Jammed . | . . . . . Distress Signals . | . . . . . Times Spotted 20 | . 1 3 1 15 Peak Tracking Total 4 | . 1 3 1 4 Tactical Retreats 1 | . . . . 1 Traps | -11 -10 -10 -9 -9 ------- Run | Scr Mat Min Mat Min Traps Triggered 1 | . 1 . . . Indirectly . | . . . . . Trap Hack Attempts . | . . . . . Triggered . | . . . . . Disarmed . | . . . . . Reprogrammed . | . . . . . Reused . | . . . . . Traps Extracted . | . . . . . Installed . | . . . . . Triggered 1 | . . . . 1 Machines | -11 -10 -10 -9 -9 ---------- Run | Scr Mat Min Mat Min Machines Disabled 2 | . . . . 2 Max in Single Turn 1 | . . . . 1 Machines Sabotaged . | . . . . . Garrisons Compromised . | . . . . . Overloaded Fab Kills . | . . . . . Fab Network Shutdowns . | . . . . . Hacking | -11 -10 -10 -9 -9 --------- Run | Scr Mat Min Mat Min Machines Accessed 1 | . . . 1 . Terminals 1 | . . . 1 . Fabricators . | . . . . . Repair Stations . | . . . . . Recycling Units . | . . . . . Scanalyzers . | . . . . . Garrison Access . | . . . . . Total Hacks 1 | . . . 1 . Successful 1 | . . . 1 . Failed . | . . . . . Catastrophic . | . . . . . Database Lockouts . | . . . . . Manual . | . . . . . Terminals 1 | . . . 1 . Fabricators . | . . . . . Repair Stations . | . . . . . Recycling Units . | . . . . . Scanalyzers . | . . . . . Garrison Access . | . . . . . Terminal Hacks 1 | . . . 1 . Assault Status 1 | . . . 1 . Fabricator Hacks . | . . . . . Repair Station Hacks . | . . . . . Recycling Unit Hacks . | . . . . . Scanalyzer . | . . . . . Garrison Access Hacks . | . . . . . Unauthorized Hacks . | . . . . . Terminals . | . . . . . Fabricators . | . . . . . Repair Stations . | . . . . . Recycling Units . | . . . . . Scanalyzers . | . . . . . Garrison Access . | . . . . . Data Cores Recovered . | . . . . . Used . | . . . . . Hacking Detections . | . . . . . Full Trace Events . | . . . . . Feedback Events . | . . . . . Feedback Blocked . | . . . . . Robot Schematics Acquired . | . . . . . Robots Built . | . . . . . Matter . | . . . . . Time . | . . . . . Total Robot Build Rating . | . . . . . Part Schematics Acquired . | . . . . . Parts Built . | . . . . . Matter . | . . . . . Time . | . . . . . Total Part Build Rating . | . . . . . Parts Repaired . | . . . . . Time . | . . . . . Parts Recycled . | . . . . . Recycled Matter . | . . . . . Retrieved Matter . | . . . . . Retrieved Components . | . . . . . Parts Scanalyzed . | . . . . . Part Schematics Acquired . | . . . . . Parts Damaged . | . . . . . Bothacking | -11 -10 -10 -9 -9 ------------ Run | Scr Mat Min Mat Min Used RIF Installer . | . . . . . Robots Hacked . | . . . . . Non-combat . | . . . . . Combat . | . . . . . Robot Hacks Applied . | . . . . . Relay Couplers Released . | . . . . . Robots Rewired . | . . . . . Allies Hacked . | . . . . . Hacks Repelled . | . . . . . Allies | -11 -10 -10 -9 -9 -------- Run | Scr Mat Min Mat Min Total Allies 3 | . . . . 3 Largest Group 3 | . . . . 3 Highest-Rated Group 40 | . . . . 40 Highest-Rated Ally 16 | . . . . 16 Total Orders . | . . . . . Ally Attacks 3 | . . . . 3 Total Damage 22 | . . . . 22 Kills . | . . . . . Allies Corrupted . | . . . . . Allies Melted . | . . . . . Intel | -11 -10 -10 -9 -9 ------- Run | Scr Mat Min Mat Min Robot Analysis Total . | . . . . . Derelict Logs Recovered 2 | . . . . 2 Drone Launches . | . . . . . Drone Recoveries . | . . . . . Exploration | -11 -10 -10 -9 -9 ------------- Run | Scr Mat Min Mat Min Turns Passed 1512 | 98 151 96 137 1030 Spaces Moved 819 | 60 88 53 78 540 Core 15 | 11 . . . 4 Treads 804 | 49 88 53 78 536 Legs . | . . . . . Wheels . | . . . . . Hover . | . . . . . Flight . | . . . . . Fastest Speed 50 | 50 160 160 160 160 Average Speed 160 | 139 160 160 160 162 Slowest Speed 400 | 160 160 160 160 400 Overloaded Moves . | . . . . . Propulsion Burnouts . | . . . . . Robots Hopped . | . . . . . Cave-ins Triggered . | . . . . . Exploration Rate (%) 24 | 5 16 17 9 77 Regions Visited 4 Branch Regions 2 Pre-discovered Areas . | . . . . . Known Exits Taken . | . . . . . Unknown Exits Taken 4 | 1 1 1 1 . Scrap Searched 2 | . . . . 2 Spaces Dug . | . . . . . Terrain Destroyed 78 | . . . . 78 Melee . | . . . . . Projectile . | . . . . . AOE 78 | . . . . 78 Actions | -11 -10 -10 -9 -9 --------- Run | Scr Mat Min Mat Min Total 964 | 75 94 56 84 655 Wait . | . . . . . Move 815 | 59 87 52 77 540 Hop . | . . . . . Pick Up 21 | 8 4 . 2 7 Fast Attach . | . . . . . Attach 14 | 7 1 . 2 4 Detach 2 | 1 . . . 1 Swap . | . . . . . Drop 3 | . . . . 3 Fire 28 | . 2 4 3 19 Melee . | . . . . . Ram 2 | . . . . 2 Kick . | . . . . . Crush . | . . . . . Escape Stasis . | . . . . . Rewire 79 | . . . . 79 Trap . | . . . . . Miscellaneous . | . . . . . Route ------- -11/Scrapyard -10/Materials -10/Mines -9/Materials -9/Mines (discovered 1 exit: [*Mat]) History --------- Turn | Location | Event 48 | -11/Scrapyard | Discovered new exit (range 14) 99 | -11/Scrapyard | Entered Materials 235 | -10/Materials | Discovered new exit (range 9) 250 | -10/Materials | Entered Mines 308 | -10/Mines | Build established: Mutant 315 | -10/Mines | Discovered new exit (range 13) 346 | -10/Mines | Entered Materials 346 | -9/Materials | Evolved 2 slots: Power x1, Weapon x1 440 | -9/Materials | Discovered new exit (range 16) 483 | -9/Materials | Entered Mines 632 | -9/Mines | Learned location of 1 exit from Materials 679 | -9/Mines | Build established: Gunner 850 | -9/Mines | Learned Materials emergency access door positions 866 | -9/Mines | Assisted by bots powering up and referring to "LRC-V3" 1183 | -9/Mines | Assembled infested the area 1188 | -9/Mines | Assisted by a Guerilla fighting off Assembled 1452 | -9/Mines | Discovered new exit (range 16) 1469 | -9/Mines | Lost 4 parts (2p1n1w) 1500 | -9/Mines | Core integrity fell below 50% 1506 | -9/Mines | Core integrity fell below 20% 1513 | -9/Mines | Destroyed by Y-45 Defender with Beam Rifle Last Messages --------------- 01438_ Spread Laser destroyed. 01439_ The unstable cave ceiling collapses. 01440_ K-01 Serf destroyed. 01444_ D-53 Grenadier destroyed. 01449_ The unstable cave ceiling collapses. 01452_ EXIT=FOUND 01453_ The unstable cave ceiling collapses. 01487_ Lgt. Treads destroyed. 01489_ K-01 Serf collects debris. 01493_ Spread Laser destroyed. 01496_ Machine disabled. 01500_ Mni. Grenade Launcher destroyed. 01500_ Destroyed Mni. Grenade Launcher. 01500_ K-01 Serf collects debris. 01501_ The unstable cave ceiling collapses. 01505_ K-01 Serf collects debris. 01505_ Slammed into Y-45 Defender. 01509_ K-01 Serf collects debris. 01509_ Slammed into Y-45 Defender. 01512_ K-01 Serf collects debris. Map ----- +----------------------------------------------------+ | ????????""""???### #????????????????? | | ?????? ??## #????????????????? | | ??????# ??# ##????????????????? | | ?????## ??# #?????????????????# | | ?????# #??# # #?????????????????# | | ?????? #??# ## #?????????????????# | | ??????# #??## ?# #?????????????????? | | ??????? ##??###?# #?????????????????? | | ???????# #?###### #?????????????????? | | ???????# #?# #?????????????????? | | ????????# #?# #?????????????????? | | ???????## ### ######?????????????????? | | ???????# ## ##?????????????????????? | | ???????# = #?????????????????????? | | ???????# * %###????????????????????? | | ??????## %! ##???????????????????? | | ?????## ###########?????????? | | ????## ## # #?????????? | | ???## ### k # #?????????? | | ???# # ## #?????????? | | ???# # ## #?????????? | | ???## ### #?????????? | | ????## # #?????????? | | ?????### # #?????????? | | ???????# # #?????????? | | ???????# @ #?????????? | | ???????# ! YY #?????????? | | ???????# ![ #?????????? | | ???????# # #?????????? | | ???????# ##" # #?????????? | | ???##### ######## #?????????? | | ??## #??????# < #?????????? | | ??# !%#??????# #?????????? | | ??## #??????# #?????????? | | ???### !##??????# #?????????? | | ?????#####???????##############?????????? | | ????????????????????????????????????????? | | ????????????????????????????????????????? | | | | | | | | | | | | | | | | | | | | | | | | | +----------------------------------------------------+ Best States ------------- Heat Dissipation 28 Energy Generation 15 Energy Capacity 400 Matter Stores 300 Matter Capacity 300 Sight Range 16 Terrain Scan Density 10 Evasion (%) 40 Recoil Reduction 2 Item Schematics ----------------- None Robot Schematics ------------------ None Fabricated ------------ Nothing Alien Tech Used ----------------- None Achievements -------------- None Challenges ------------ None Game ------ Seed SmartbombZioniteExtractor Manual? 0 Play Time 00:15:54 Cumulative 20.0 hours Start 2020.05.24 @ 17:26:37 End 2020.05.24 @ 18:02:58 Sessions 1 Manual Loads 0 Difficulty Rogue Special Mode None Game No. 87 Rogue 83 Adventurer 0 Explorer 4 Win Type - Total 0 Types 0/0/0/0/0/0/0 Lore% 21 Gallery% 18 Achievement% 17 Wizard Run 0 Options --------- ASCII 0 Keyboard 0 Movement Arrows Keybinds 0 Fullscreen 1 Font 18/X11 Map View 76x50 Tactical HUD 1 Map Filters NONE Filters NONE Steam 1 RUN: d326e9aa-3c57-4fbb-b9d7-240d3cc97cf9